bitfinex/quotes_ETHUSD_20220305
["timestamp","ask_amount","ask_price","bid_price","bid_amount"]
[1646441263026,4.6752,2605.7,2605.0,0.19201]
[1646441263027,4.2908,2605.7,2605.0,0.19201]
[1646441263226,0.92613199,2605.5,2605.0,0.19201]
[1646441264431,0.00235992,2605.4,2604.8,0.38402]
[1646441264732,0.00235992,2605.4,2604.9,0.96005]
[1646441265200,0.00235992,2605.4,2605.1,1.91965]
[1646441265396,0.00193627,2605.3,2605.1,13.57965]
[1646441265594,0.90220114,2606.0,2605.3,0.99933221]
[1646441265794,0.90220114,2606.0,2605.4,1.15179]
[1646441265996,0.90220114,2606.0,2605.3,0.38392]
[1646441266194,1.57491658,2605.9,2605.3,0.38392]
[1646441266496,5.07491658,2605.9,2604.8,1.3778]
[1646441266697,1.57491658,2605.8,2604.8,0.1918]
[1646441266996,17.16,2605.7,2604.8,0.1918]
[1646441267195,5.07491658,2605.6,2604.8,0.1918]
[1646441267398,2.0,2605.6,2604.8,0.1918]
[1646441267698,3.23290114,2606.0,2604.8,0.1918]
[1646441267699,2.3819,2605.9,2604.8,0.1918]
[1646441267898,0.92989138,2605.3,2604.8,0.1918]
[1646441268928,0.92989138,2605.3,2604.5,0.00109371]
[1646441269227,2.0,2605.9,2604.6,0.96016]
[1646441269427,0.00257881,2605.2,2604.6,0.96016]
[1646441269629,0.00257881,2605.2,2604.6,1.34421]
[1646441270030,1.57511232,2605.6,2604.6,1.34421]
[1646441270230,0.94962625,2605.1,2604.6,1.34421]
[1646441270431,0.00257868,2605.2,2604.6,1.34421]
[1646441271028,0.00257868,2605.2,2604.8,0.19203]
[1646441271427,2.0,2605.9,2604.8,0.19203]
[1646441271628,0.00257868,2605.2,2604.8,0.19203]
[1646441272587,1.07729796,2605.4,2604.8,0.19203]
[1646441272780,0.00257876,2605.2,2604.8,0.19203]
[1646441273680,1.07729796,2605.4,2604.8,0.19203]
[1646441273883,0.00235838,2605.2,2604.8,0.19203]
[1646441274583,0.00235838,2605.2,2604.6,2.30435]
[1646441274584,0.21106358,2604.7,2604.6,2.30435]
[1646441276324,2.0,2605.9,2605.0,1.92]
[1646441276522,0.00235812,2605.2,2605.0,2.8799819]
[1646441276723,1.70235812,2605.9,2605.1,2.5]
[1646441276924,1.4395,2606.3,2605.1,2.5]
[1646441277124,0.97240717,2605.9,2605.2,1.08086955]
[1646441277425,0.97240717,2605.9,2605.4,0.19198]
[1646441279829,0.91014224,2605.5,2605.3,0.19198]
[1646441280274,3.5,2606.2,2605.3,0.19198]
[1646441280480,1.7016,2606.3,2605.3,0.19198]
[1646441280673,1.57490049,2606.2,2605.3,0.19198]
[1646441280878,0.1918,2606.1,2605.3,0.19198]
[1646441281080,0.00257876,2605.9,2605.3,0.19198]
[1646441281273,0.92680885,2605.9,2605.3,0.19198]
[1646441281472,0.92680885,2605.9,2605.3,1.10188]
[1646441282079,0.92423009,2605.9,2605.3,0.14198]
[1646441282277,0.00257879,2605.7,2605.3,0.14198]
[1646441282476,0.00257879,2605.7,2605.0,1.0]
[1646441282678,0.00257879,2605.7,2604.6,0.4737]
[1646441282877,1.57767568,2605.7,2604.6,0.4737]
[1646441283077,3.5,2605.6,2604.6,0.4737]
[1646441283275,0.97712915,2604.8,2604.6,0.4737]
[1646441283478,1.7016,2605.9,2604.6,0.4737]
[1646441283479,2.4558,2605.7,2604.6,0.4737]
[1646441283721,0.00257881,2605.3,2604.7,0.09602]
[1646441284527,3.5,2605.6,2604.7,0.09602]
[1646441284727,1.05272935,2604.8,2604.6,0.66573]
[1646441286130,0.00250784,2605.3,2604.6,0.66573]
[1646441286734,4.30529199,2605.7,2604.6,0.66573]
[1646441287131,0.00250805,2605.3,2604.6,0.66573]
[1646441287332,1.01825841,2604.9,2604.6,0.66573]
[1646441288070,1.01825841,2604.9,2604.6,0.19203]
[1646441288472,0.00250789,2605.3,2604.6,0.19203]
[1646441288673,0.00250789,2605.3,2604.6,1.1522]
[1646441289474,2.4558,2605.7,2604.6,0.19203]
[1646441289677,0.89056776,2605.1,2604.6,0.19203]
[1646441291326,0.92018885,2604.7,2604.6,0.19203]
[1646441292222,0.00253547,2605.3,2604.6,0.19203]
[1646441293023,1.12984074,2604.8,2604.6,0.19203]
[1646441293227,1.12984074,2604.8,2604.5,0.00109371]
[1646441294428,1.12149981,2604.8,2604.5,0.00109371]
[1646441295088,1.12149981,2604.8,2604.3,0.9988093]
[1646441295089,6.07508084,2604.7,2604.3,0.9988093]
[1646441295297,1.57508084,2604.6,2604.3,0.9984]
[1646441295886,1.95698084,2604.6,2603.4,1.1895]
[1646441296086,1.57508084,2604.5,2604.1,0.9976]
[1646441296287,1.57508084,2604.4,2603.4,3.5]
[1646441296489,1.57508084,2604.3,2603.2,0.09608]
[1646441296686,1.57508084,2604.3,2602.8,0.9976]
[1646441296687,0.99837862,2603.2,2602.8,0.9976]
[1646441297388,0.99837862,2603.2,2602.6,0.91225238]
[1646441297588,0.3819,2603.8,2602.6,0.91225238]
[1646441297790,1.95771011,2603.7,2602.6,0.91225238]
[1646441298088,1.57581011,2603.6,2602.6,0.91225238]
[1646441298491,0.3819,2603.7,2602.6,0.91225238]
[1646441298720,3.5,2604.1,2602.6,1.87315238]
[1646441298721,0.86625027,2603.5,2602.6,1.87315238]
[1646441298926,0.86625027,2603.5,2602.7,0.0961]
[1646441299328,0.86625027,2603.5,2602.7,1.0569009]
[1646441299528,0.86625027,2603.5,2602.7,0.9608009]
[1646441299928,0.3819,2604.0,2602.7,0.9608009]
[1646441300129,1.57564407,2603.9,2602.9,0.09609]
[1646441301129,1.57564407,2603.9,2603.0,0.87469264]
[1646441301331,2.2621,2604.1,2603.2,0.96067]
[1646441301530,1.57550474,2604.0,2603.2,0.09606]
[1646441301732,0.192,2604.3,2603.2,0.09606]
[1646441301930,1.57547551,2604.2,2603.2,0.09606]
[1646441302128,0.192,2604.1,2603.2,0.09606]
[1646441302576,0.98010237,2603.8,2603.2,0.09606]
[1646441303077,0.98010237,2603.8,2603.3,0.96057]
[1646441303478,0.98010237,2603.8,2603.3,2.88166]
[1646441303676,0.98010237,2603.8,2603.3,3.88166]
[1646441303879,0.192,2604.2,2603.3,3.88166]
[1646441304078,1.57545874,2604.1,2603.4,0.09607]
[1646441304285,0.192,2604.3,2603.4,0.09607]
[1646441304482,1.57549361,2604.2,2603.4,0.09607]
[1646441304678,0.192,2604.1,2603.4,0.09607]
[1646441304880,1.07175551,2604.0,2603.4,0.09607]
[1646441305379,1.07175551,2604.0,2603.4,2.01172578]
[1646441306231,2.13819997,2604.4,2603.5,0.96055]
[1646441306434,0.192,2604.5,2603.7,0.09605]
[1646441306632,1.57530217,2604.4,2603.7,0.09605]
[1646441306833,2.0,2604.8,2603.7,0.09605]
[1646441307032,1.57525108,2604.7,2603.7,0.09605]
[1646441307230,1.18176827,2604.5,2603.8,1.09906222]
[1646441307431,1.57525108,2604.4,2603.8,1.09906222]
[1646441307831,1.57525108,2604.4,2603.7,3.01688]
[1646441307832,1.18176827,2604.5,2603.7,3.01688]
[1646441308033,1.18176827,2604.5,2603.7,2.01688]
[1646441308234,1.18176827,2604.5,2603.7,3.01688]
[1646441308532,1.18176827,2604.5,2603.7,2.01688]
[1646441308533,1.57520852,2604.4,2603.7,2.01688]
[1646441308735,1.57520852,2604.4,2603.7,3.01688]
[1646441308936,1.57520852,2604.4,2603.7,2.01688]
[1646441309136,1.57520852,2604.4,2603.7,3.01688]
[1646441309339,1.18176827,2604.5,2603.7,2.01688]
[1646441309536,1.18176827,2604.5,2603.7,3.01688]
[1646441309737,1.18176827,2604.5,2603.7,2.01688]
[1646441309983,1.18176827,2604.5,2603.7,3.01688]
[1646441310377,1.18176827,2604.5,2604.0,1.21905542]
[1646441310580,1.18176827,2604.5,2603.7,3.97738]
[1646441311577,1.18176827,2604.5,2603.8,0.88064033]
[1646441312084,2.0,2604.8,2603.8,1.26254033]
[1646441312284,4.7246,2604.9,2604.2,0.09604]
[1646441312285,1.5751127,2604.7,2604.2,0.09604]
[1646441312482,3.421,2605.3,2604.2,0.09604]
[1646441312483,3.42330179,2605.3,2604.2,0.09604]
[1646441312681,1.57502834,2605.2,2604.2,0.09604]
[1646441313081,1.19541471,2604.9,2604.3,1.00531051]
[1646441313285,1.57504923,2604.8,2604.2,0.09604]
[1646441314155,1.57504923,2604.8,2604.2,1.05634]
[1646441314354,1.19541471,2604.9,2604.2,2.04712198]
[1646441314554,1.57505696,2604.8,2604.2,2.04712198]
[1646441314757,1.57505696,2604.8,2604.2,1.05634]
[1646441315755,1.57505696,2604.8,2604.2,2.03885062]
[1646441316662,2.19405928,2605.3,2604.3,1.34219]
[1646441316663,0.00225928,2605.3,2604.3,1.34219]
[1646441316859,0.00225928,2605.3,2604.6,3.0]
[1646441317063,1.57469122,2606.1,2604.8,4.5]
[1646441317264,2.3407,2606.5,2605.6,0.002668]
[1646441317265,1.57469122,2606.0,2605.6,0.002668]
[1646441317489,3.22925303,2606.5,2605.6,0.002668]
[1646441317490,1.57469122,2605.9,2605.6,0.002668]
[1646441317679,0.99596324,2606.1,2605.6,0.002668]
[1646441317878,0.99596324,2606.1,2605.7,1.9194121]
[1646441318079,1.57458355,2606.0,2605.7,1.9194121]
[1646441318485,1.57458355,2606.0,2605.8,1.05566]
[1646441318686,0.0452553,2606.6,2605.8,1.05566]
[1646441318687,0.2370553,2606.6,2605.8,1.05566]
[1646441318884,1.56266789,2606.5,2605.8,0.09597]
[1646441319084,1.56266789,2606.5,2606.0,0.9594596]
[1646441319284,1.56266789,2606.5,2606.0,1.9189196]
[1646441319484,0.93873516,2606.3,2605.9,1.0]
[1646441319688,0.94133285,2606.3,2605.9,1.0]
[1646441319888,0.94133285,2606.3,2605.7,0.19194]
[1646441319889,1.56051695,2606.2,2605.7,0.19194]
[1646441320085,1.56051695,2606.2,2605.6,0.002668]
[1646441320491,1.09990225,2605.9,2605.6,0.002668]
[1646441320687,1.56052019,2605.8,2605.6,0.002668]
[1646441321088,1.09990225,2605.9,2605.6,0.002668]
[1646441321338,1.56050824,2605.8,2605.6,0.002668]
[1646441322134,1.56310601,2605.8,2605.6,0.002668]
[1646441322932,1.56050824,2605.8,2605.6,0.002668]
[1646441323332,1.56310601,2605.8,2605.6,0.002668]
[1646441323835,1.56310601,2605.8,2604.8,7.97939033]
[1646441324135,1.18802549,2605.3,2604.8,4.47939033]
[1646441324335,1.18802549,2605.3,2605.0,0.96004]
[1646441324534,0.00254861,2605.4,2605.0,1.15205]
[1646441324735,0.00254861,2605.4,2605.0,2.1120149]
[1646441324991,0.00254861,2605.4,2605.1,0.95998]
[1646441325381,1.56054956,2605.7,2605.1,0.95998]
[1646441325581,1.21359622,2605.6,2605.1,0.95998]
[1646441325783,1.21347779,2605.6,2605.1,0.95998]
[1646441325981,1.21347779,2605.6,2605.2,0.096]
[1646441328086,0.00251044,2605.5,2605.2,0.096]
[1646441328485,0.00251044,2605.5,2605.1,0.19201]
[1646441328934,0.00251044,2605.5,2604.7,4.84014]
[1646441328935,3.50251044,2605.5,2604.7,1.1918]
[1646441329136,1.94208809,2605.4,2604.2,0.47984]
[1646441329335,1.94208809,2605.4,2604.1,1.1142]
[1646441329336,5.44208809,2605.3,2604.1,1.306]
[1646441329537,1.56018809,2605.2,2604.5,0.00469625]
[1646441329735,1.02175491,2604.6,2604.5,0.00469625]
[1646441330342,1.02175491,2604.6,2604.0,3.71199348]
[1646441330537,1.02175491,2604.6,2604.0,2.71669062]
[1646441330736,0.19430974,2605.5,2604.0,3.81274062]
[1646441330737,3.69430974,2605.5,2604.0,3.81274062]
[1646441330940,3.69430974,2605.5,2604.2,0.19207]
[1646441330941,1.56033483,2605.4,2604.2,0.19207]
[1646441331137,1.56033483,2605.4,2604.2,1.15239]
[1646441331737,1.56033483,2605.4,2604.3,0.0014568]
[1646441331738,1.94223483,2605.4,2604.3,0.0014568]
[1646441331937,1.56033483,2605.3,2604.3,0.0014568]
[1646441332341,1.00803902,2605.1,2604.5,1.14779311]
[1646441333182,1.00803902,2605.1,2604.4,1.05626]
[1646441335493,0.00254865,2605.5,2604.7,0.09603]
[1646441335688,0.00254865,2605.5,2604.7,1.05616]
[1646441336329,2.428,2605.7,2604.7,1.05616]
[1646441336529,0.00254894,2605.5,2604.7,1.05616]
[1646441336734,1.14277182,2605.4,2604.7,1.05616]
[1646441337331,1.14277182,2605.4,2604.9,0.96008]
[1646441338531,0.0025489,2605.5,2604.9,0.96008]
[1646441338733,2.0,2605.8,2604.9,0.96008]
[1646441338935,0.00251431,2605.5,2604.9,0.96008]
[1646441339536,0.00251431,2605.5,2605.0,1.17485288]
[1646441339737,1.99411147,2605.8,2605.1,0.09601]
[1646441340180,0.00251436,2605.5,2605.1,0.09601]
[1646441341182,1.99411147,2605.8,2604.8,0.19202]
[1646441341380,1.16991587,2605.2,2604.8,0.19202]
[1646441345538,1.16991587,2605.2,2604.6,0.1918]
[1646441346137,1.16991587,2605.2,2604.5,1.1968503]
[1646441346338,1.16991587,2605.2,2604.5,0.1968503]
[1646441346538,1.16991587,2605.2,2604.6,2.8808367]
[1646441346740,1.16991587,2605.2,2604.7,0.09603]
[1646441348378,1.16991587,2605.2,2604.8,0.96024]
[1646441348582,1.16991587,2605.2,2604.8,1.15229]
[1646441351233,1.16991587,2605.2,2604.8,0.19205]
[1646441351431,1.16991587,2605.2,2604.7,1.09603]
[1646441351631,1.16991587,2605.2,2604.5,1.00480684]
[1646441351632,5.06251579,2605.1,2604.5,1.00480684]
[1646441351832,5.06251579,2605.1,2604.4,0.19208]
[1646441351833,1.56251579,2605.0,2604.4,0.19208]
[1646441352232,1.07346964,2604.7,2604.4,0.19208]
[1646441353631,0.1918,2605.4,2604.4,0.19208]
[1646441353839,1.56453184,2605.3,2604.4,0.19208]
[1646441354236,1.56186684,2605.3,2604.6,0.09604]
[1646441355282,1.09989256,2605.2,2604.6,0.09604]
[1646441355484,1.09989256,2605.2,2604.7,1.920513]
[1646441355683,1.09989256,2605.2,2604.7,0.09603]
[1646441357884,2.3755,2605.6,2604.7,0.09603]
[1646441358087,1.99612197,2605.6,2604.7,0.09603]
[1646441358731,1.99612197,2605.6,2604.8,0.96023]
[1646441358934,1.99612197,2605.6,2605.0,0.09603]
[1646441359139,0.94806932,2605.5,2605.0,0.09603]
[1646441362785,0.94806932,2605.5,2604.7,1.0]
[1646441363184,0.94806932,2605.5,2604.6,0.10087227]
[1646441363793,0.94806932,2605.5,2604.6,1.02118461]
[1646441363992,2.69263134,2605.6,2605.0,1.0771982]
[1646441363993,2.69035303,2605.6,2605.0,1.0771982]
[1646441364193,1.99587814,2605.6,2605.0,1.0771982]
[1646441364497,1.99587814,2605.6,2605.0,1.2692082]
[1646441365094,2.471,2606.0,2605.5,0.95996]
[1646441365095,3.16775303,2606.0,2605.5,0.95996]
[1646441365294,0.69675303,2606.0,2605.5,0.95996]
[1646441365494,0.00227832,2605.6,2605.5,0.95996]
[1646441366330,1.6688702,2606.1,2605.5,1.88484268]
[1646441366533,0.00252251,2605.7,2605.5,0.95996]
[1646441367532,1.6688702,2606.1,2605.4,4.0717191]
[1646441367733,1.6688702,2606.1,2605.6,0.09599]
[1646441367934,0.09805272,2605.5,2605.4,2.15201]
[1646441368134,0.09805272,2605.5,2605.4,1.15201]
[1646441370383,0.09805272,2605.5,2605.4,0.192]
[1646441372986,0.07662378,2605.5,2605.4,0.192]
[1646441373835,0.07662378,2605.5,2605.3,0.19201]
[1646441374236,1.52311905,2605.4,2605.3,0.19201]
[1646441374435,1.52311905,2605.4,2605.3,0.07873508]
[1646441374436,5.02311905,2605.4,2605.3,0.07873508]
[1646441374737,1.52311905,2605.4,2605.3,0.07873508]
[1646441374938,1.52311905,2605.4,2604.9,0.07873508]
[1646441376338,1.14144105,2605.5,2604.9,0.07873508]
[1646441377337,1.14144105,2605.5,2604.9,2.95903518]
[1646441377588,1.14144105,2605.5,2604.9,1.9201201]
[1646441377785,1.14144105,2605.5,2604.9,2.9201201]
[1646441377987,1.14144105,2605.5,2605.0,2.11218]
[1646441378385,1.14144105,2605.5,2605.0,0.19203]
[1646441378997,1.14144105,2605.5,2605.0,1.1522]
[1646441379895,1.14144105,2605.5,2605.1,0.19204]
[1646441381937,1.0896546,2605.5,2605.1,0.19204]
[1646441383036,1.0896546,2605.5,2605.1,2.1121992]
[1646441383437,1.0896546,2605.5,2605.2,0.96009]
[1646441383438,0.02483733,2605.5,2605.2,0.96009]
[1646441383637,0.02483733,2605.5,2605.2,1.0561]
[1646441384540,0.02483733,2605.5,2605.2,2.01613]
[1646441385004,0.02483733,2605.5,2605.2,1.0561]
[1646441385394,0.02483733,2605.5,2605.2,0.09601]
[1646441386697,0.02483733,2605.5,2605.1,0.19204]
[1646441386698,1.14130244,2605.4,2605.1,0.19204]
[1646441386896,1.14130244,2605.4,2605.0,0.19204]
[1646441389339,1.14130244,2605.4,2605.0,1.15219]
[1646441390345,1.14130244,2605.4,2605.0,0.19204]
[1646441390740,1.14130244,2605.4,2605.0,1.15216]
[1646441391539,1.14130244,2605.4,2605.0,0.19204]
[1646441391740,1.14130244,2605.4,2605.0,1.15217]
[1646441392240,0.02483733,2605.5,2605.0,1.15217]
[1646441392683,0.02483733,2605.5,2605.0,2.11229]
[1646441392987,0.02483733,2605.5,2605.1,0.09601]
[1646441396332,1.51977848,2605.4,2605.1,0.09601]
[1646441396833,1.51977848,2605.4,2605.2,0.07873375]
[1646441397037,1.51977848,2605.4,2605.1,2.01615]
[1646441397335,1.51977848,2605.4,2605.2,0.07873237]
[1646441400587,1.51977848,2605.4,2605.1,0.09601]
[1646441400788,0.18822457,2604.9,2604.7,2.1811]
[1646441400985,1.51977848,2604.8,2604.7,1.0]
[1646441401187,1.51977848,2604.8,2604.7,0.07874342]
[1646441401985,1.51977848,2604.8,2604.7,0.17478342]
[1646441402785,1.49110048,2604.8,2604.6,1.17308342]
[1646441402985,0.18822457,2604.9,2604.6,1.17308342]
[1646441404038,0.18822457,2604.9,2604.7,0.09604]
[1646441404743,0.18822457,2604.9,2604.4,1.0]
[1646441405139,0.18822457,2604.9,2604.3,0.71073332]
[1646441405541,0.18822457,2604.9,2604.3,1.88793076]
[1646441405944,0.16221157,2604.9,2604.5,0.09604]
[1646441407687,0.16221157,2604.9,2604.4,0.5519673]
[1646441408891,0.16221157,2604.9,2604.5,0.09604]
[1646441410894,0.16221157,2604.9,2604.2,1.09605]
[1646441411106,0.16221157,2604.9,2604.2,0.00484914]
[1646441412144,0.86643246,2604.6,2604.0,2.35390151]
[1646441412340,0.86643246,2604.6,2604.0,1.19315093]
[1646441413340,0.86643246,2604.6,2604.0,1.28436151]
[1646441413551,0.16221157,2604.9,2604.1,3.5]
[1646441413750,0.16221157,2604.9,2604.1,5.43043056]
[1646441413947,0.16221157,2604.9,2604.2,0.93043056]
[1646441414248,0.16221157,2604.9,2604.3,4.81233056]
[1646441414450,0.16221157,2604.9,2604.6,0.96001]
[1646441414646,0.16221157,2604.9,2604.8,0.3819]
[1646441414850,0.02483733,2605.5,2604.9,4.8819]
[1646441415092,0.02483733,2605.5,2605.1,0.3819]
[1646441415290,0.02483733,2605.5,2605.2,3.97788]
[1646441415492,0.02483733,2605.5,2605.2,0.47788]
[1646441415691,0.02483733,2605.5,2605.3,4.4127666]
[1646441415890,0.02483733,2605.5,2605.4,4.49788658]
[1646441416292,0.02483733,2605.5,2605.4,5.49788658]
[1646441416491,0.02483733,2605.5,2605.4,1.99788658]
[1646441416692,0.02483733,2605.5,2605.4,2.95764658]
[1646441416893,0.02483733,2605.5,2605.4,1.95764658]
[1646441417092,0.02483733,2605.5,2605.4,2.95764658]
[1646441417292,0.02483733,2605.5,2605.4,1.95764658]
[1646441417492,0.02483733,2605.5,2605.4,2.95764658]
[1646441419139,0.02483733,2605.5,2605.4,5.45764658]
[1646441419340,0.02483733,2605.5,2605.4,6.45764658]
[1646441419538,0.02483733,2605.5,2605.4,2.95764658]
[1646441419740,0.02483733,2605.5,2605.4,5.45764658]
[1646441419940,0.02483733,2605.5,2605.4,6.45764658]
[1646441420241,0.02483733,2605.5,2605.4,6.83954658]
[1646441422043,0.02483733,2605.5,2605.4,2.95764658]
[1646441422244,0.02483733,2605.5,2605.4,1.95764658]
[1646441422884,0.02483733,2605.5,2605.4,2.03636266]
[1646441423485,0.02483733,2605.5,2605.4,5.53636266]
[1646441423686,0.02483733,2605.5,2605.4,2.03636266]
[1646441423889,0.02483733,2605.5,2605.4,3.03636266]
[1646441424790,0.02483733,2605.5,2605.4,6.53636266]
[1646441426240,0.02483733,2605.5,2605.4,6.91826266]
[1646441426538,0.02483733,2605.5,2605.4,8.09179463]
[1646441426939,0.0022978,2605.6,2605.5,4.5]
[1646441427138,0.0022978,2605.6,2605.5,4.57871608]
[1646441427338,0.0022978,2605.6,2605.5,5.57871608]
[1646441427538,0.0022978,2605.6,2605.5,21.12061608]
[1646441427742,1.52045425,2606.4,2605.9,0.3819]
[1646441427941,0.00918826,2606.5,2606.0,4.53822608]
[1646441428140,0.00918826,2606.5,2606.1,0.07871608]
[1646441428638,0.0143144,2606.7,2606.3,4.5]
[1646441428843,0.0143144,2606.7,2606.4,3.57871608]
[1646441429042,0.0143144,2606.7,2606.5,0.07871608]
[1646441429246,0.0328197,2606.9,2606.6,4.5]
[1646441429442,1.45584534,2606.8,2606.6,4.5]
[1646441429643,1.45584534,2606.8,2606.6,5.5]
[1646441429843,0.0328197,2606.9,2606.7,0.87275618]
[1646441430088,0.0328197,2606.9,2606.7,3.75052618]
[1646441430290,0.0328197,2606.9,2606.7,5.03830618]
[1646441430693,0.0328197,2606.9,2606.7,5.99760748]
[1646441431093,0.0136684,2607.0,2606.8,2.7]
[1646441431291,0.0136684,2607.0,2606.8,3.79595]
[1646441431694,0.0136684,2607.0,2606.9,0.95942]
[1646441431896,1.45603142,2607.0,2606.9,0.95942]
[1646441432095,0.0136684,2607.0,2606.9,0.95942]
[1646441435443,0.0136684,2607.0,2606.8,5.8928721]
[1646441435639,0.0136684,2607.0,2606.8,4.9334663]
[1646441436440,0.01628152,2607.0,2606.8,4.9334663]
[1646441437242,0.0136684,2607.0,2606.8,4.9334663]
[1646441437502,0.01628152,2607.0,2606.3,2.18523]
[1646441437685,1.26090947,2606.9,2606.3,2.18523]
[1646441437884,1.26090947,2606.9,2606.3,0.57543]
[1646441438085,1.26090947,2606.9,2606.3,0.38373]
[1646441438485,1.26090947,2606.9,2606.4,0.09598]
[1646441438889,0.00261317,2606.7,2606.4,1.05565]
[1646441439289,0.00261317,2606.7,2606.4,2.0153037]
[1646441439694,1.26090947,2606.9,2606.4,2.0153037]
[1646441439890,0.00261318,2606.7,2606.4,2.0153037]
[1646441440091,0.00261318,2606.7,2606.4,1.05565]
[1646441440893,1.26090947,2606.9,2606.4,1.05565]
[1646441441092,0.00258455,2606.7,2606.4,1.05565]
[1646441441336,0.00258455,2606.7,2606.4,2.01529]
[1646441442136,1.26090947,2606.9,2606.4,0.09598]
[1646441442341,0.00258455,2606.7,2606.3,0.32280241]
[1646441443139,1.26090947,2606.9,2606.3,0.32280241]
[1646441443337,1.20292524,2606.7,2606.3,0.32280241]
[1646441443537,0.00258456,2606.6,2606.3,0.32280241]
[1646441443942,0.00258456,2606.6,2606.4,0.09598]
[1646441444341,1.20292524,2606.7,2606.4,0.09598]
[1646441444541,1.20292524,2606.7,2606.3,0.32280241]
[1646441444542,1.20292524,2606.7,2606.3,0.31878241]
[1646441444743,0.00256488,2606.6,2606.3,0.31878241]
[1646441445691,0.1554684,2607.0,2606.3,0.31878241]
[1646441445890,0.00256484,2606.6,2606.3,0.31878241]
[1646441446188,0.00256484,2606.6,2606.4,0.09598]
[1646441446389,0.00256484,2606.6,2606.5,1.91908]
[1646441446889,0.0162261,2607.1,2606.5,1.91908]
[1646441447092,0.0162261,2607.1,2606.6,0.09595]
[1646441447289,0.00256487,2606.7,2606.6,0.09595]
[1646441447494,0.00256487,2606.7,2606.6,3.1863607]
[1646441447691,0.00256487,2606.7,2606.6,3.47058748]
[1646441447888,0.00256487,2606.7,2606.6,4.47058748]
[1646441448089,0.0162261,2607.1,2606.6,4.43000748]
[1646441448289,0.00215759,2606.8,2606.7,0.47610678]
[1646441448494,0.00215759,2607.2,2606.8,4.5021]
[1646441448747,0.00215759,2607.2,2607.0,1.07516112]
[1646441449149,0.00215759,2607.2,2607.0,2.03431112]
[1646441449350,0.00215759,2607.2,2607.1,0.28694462]
[1646441450353,5.759e-05,2607.2,2607.1,0.28694462]
[1646441452989,5.759e-05,2607.2,2607.0,4.91172422]
[1646441454096,0.0329505,2607.3,2607.1,1.91852]
[1646441454293,0.0329505,2607.3,2607.2,0.95926]
[1646441457848,0.0329505,2607.3,2607.1,4.83704]
[1646441458042,0.0329505,2607.3,2607.0,0.09593]
[1646441458245,0.0329505,2607.3,2607.0,1.05538]
[1646441459246,0.03557843,2607.3,2607.0,2.9742257]
[1646441459648,0.03557843,2607.3,2607.0,3.9742257]
[1646441460885,0.03557843,2607.3,2607.2,0.95936]
[1646441461284,0.0329505,2607.3,2607.2,0.95936]
[1646441461484,0.03557843,2607.3,2607.2,0.95936]
[1646441461684,0.03557843,2607.3,2607.2,1.24677629]
[1646441462485,0.01455911,2607.3,2607.2,1.24677629]
[1646441463588,0.1917,2608.2,2607.5,0.95916]
[1646441463840,1.21248281,2608.1,2607.8,1.9182783]
[1646441464039,1.21248281,2608.1,2607.8,0.95914]
[1646441464248,0.1917,2608.6,2607.5,4.8365466]
[1646441464441,3.6917,2608.6,2607.5,4.8365466]
[1646441464639,1.15101089,2608.2,2607.8,0.09592]
[1646441467498,0.00262777,2608.1,2607.8,0.09592]
[1646441467893,3.50262777,2608.1,2607.4,0.19186]
[1646441468293,0.00262777,2608.1,2607.4,0.19186]
[1646441468490,3.5,2608.1,2607.4,0.19186]
[1646441468691,3.5,2608.1,2607.2,2.1735]
[1646441468692,1.01121739,2607.5,2607.2,2.1735]
[1646441468896,0.00262777,2607.9,2607.3,0.19187]
[1646441469696,2.45946,2608.1,2607.3,0.19187]
[1646441469894,0.94270366,2607.5,2607.3,0.19187]
[1646441471095,0.00096,2607.9,2607.3,0.19187]
[1646441471339,0.00262748,2607.9,2607.3,1.15119]
[1646441472239,1.19029037,2608.2,2607.5,0.99382997]
[1646441472542,0.00262765,2607.9,2607.7,0.95916]
[1646441473341,0.00096,2608.5,2607.7,0.95916]
[1646441473545,0.00096,2608.5,2607.5,4.10397997]
[1646441473546,0.00262781,2607.9,2607.8,0.95916]
[1646441474546,0.00096,2608.4,2607.9,1.18353101]
[1646441474746,1.15746559,2608.5,2608.0,1.91812]
[1646441475008,1.10746559,2608.5,2608.0,1.91812]
[1646441476000,0.0023199,2608.4,2608.1,0.09591]
[1646441476205,0.0180916,2608.7,2608.1,0.09591]
[1646441476401,0.0171316,2608.7,2608.1,0.09591]
[1646441477300,1.18111731,2608.6,2608.1,0.09591]
[1646441477701,0.0171316,2608.7,2608.1,0.09591]
[1646441478004,0.0171316,2608.7,2608.2,0.959]
[1646441479046,0.0171316,2608.7,2608.4,0.9589]
[1646441479246,0.0171316,2608.7,2608.5,0.09589]
[1646441479448,0.00262769,2608.6,2608.5,0.09589]
[1646441480549,0.0171316,2608.7,2608.5,0.09589]
[1646441480749,0.01975927,2608.7,2608.5,0.09589]
[1646441481747,0.0171316,2608.7,2608.5,0.09589]
[1646441481949,0.01975926,2608.7,2608.5,0.09589]
[1646441482347,0.01975926,2608.7,2608.5,1.05476]
[1646441482590,0.01975926,2608.7,2608.4,1.29486586]
[1646441482992,0.0171316,2608.7,2608.4,1.29486586]
[1646441483390,0.01975926,2608.7,2608.5,0.95887]
[1646441483794,0.01975926,2608.7,2608.5,0.09589]
[1646441484007,0.0171316,2608.7,2608.5,0.09589]
[1646441484196,1.24864921,2608.6,2608.5,0.09589]
[1646441485397,1.24864921,2608.6,2608.3,1.0]
[1646441485398,1.24943647,2608.6,2608.3,1.0]
[1646441485599,1.24943647,2608.6,2608.1,0.1915]
[1646441485799,1.21563886,2608.3,2608.1,0.1915]
[1646441486240,0.01965044,2608.7,2608.1,0.1915]
[1646441486441,1.24949725,2608.6,2608.1,0.1915]
[1646441486841,0.00251869,2608.5,2608.1,0.1915]
[1646441487440,0.97722813,2608.4,2608.1,0.1915]
[1646441487843,0.97722813,2608.4,2608.0,0.09591]
[1646441488946,1.22094478,2608.3,2608.0,1.05499]
[1646441489150,0.00233631,2608.5,2608.1,0.959039]
[1646441489996,1.22092635,2608.6,2608.1,0.959039]
[1646441490187,1.22092635,2608.6,2608.1,2.12096549]
[1646441490487,0.00233638,2608.5,2608.2,1.05489]
[1646441490688,0.00233638,2608.5,2608.3,2.25061144]
[1646441490888,0.00233638,2608.5,2608.4,0.33334724]
[1646441491290,1.22092635,2608.6,2608.4,0.33334724]
[1646441491488,1.22092635,2608.6,2608.5,0.95886]
[1646441491692,1.22092635,2608.6,2608.5,1.29220724]